[Event "Titled Tuesday Blitz September 27 Late 2022"]
[White "Paravyan, David"]
[Black "Oro, Faustino"]
[WhiteFideId "4194985"]
[BlackFideId "20000197"]
[WhiteElo "2555"]
[BlackElo "1838"]
[Result "1-0"]
[Round "01"]
[TimeControl "180+1"]
[Date "2022.09.27"]
[WhiteClock "0:00:08"]
[BlackClock "0:00:04"]

1. e4 {[%clk 0:02:57]}  e5 {[%clk 0:02:58]} 2. Nf3 {[%clk 0:02:57]}  Nc6 {[%clk 0:02:59]} 3. Nc3 {[%clk 0:02:57]}  Nf6 {[%clk 0:02:58]} 4. d4 {[%clk 0:02:58]}  exd4 {[%clk 0:02:57]} 5. Nxd4 {[%clk 0:02:58]}  Bb4 {[%clk 0:02:57]} 6. Nxc6 {[%clk 0:02:57]}  bxc6 {[%clk 0:02:56]} 7. Bd3 {[%clk 0:02:58]}  O-O {[%clk 0:02:54]} 8. O-O {[%clk 0:02:58]}  d5 {[%clk 0:02:54]} 9. Bd2 {[%clk 0:02:59]}  Bxc3 {[%clk 0:02:50]} 10. Bxc3 {[%clk 0:02:58]}  dxe4 {[%clk 0:02:51]} 11. Bc4 {[%clk 0:02:57]}  Nd5 {[%clk 0:02:44]} 12. Qd4 {[%clk 0:02:56]}  Nxc3 {[%clk 0:02:27]} 13. Qxc3 {[%clk 0:02:56]}  Bf5 {[%clk 0:02:25]} 14. Rfe1 {[%clk 0:02:51]}  Qg5 {[%clk 0:02:21]} 15. Qe5 {[%clk 0:02:21]}  Rae8 {[%clk 0:02:11]} 16. Qxc7 {[%clk 0:02:19]}  e3 {[%clk 0:02:11]} 17. fxe3 {[%clk 0:02:13]}  Rxe3 {[%clk 0:02:09]} 18. Qxa7 {[%clk 0:02:04]}  Be4 {[%clk 0:02:02]} 19. Bf1 {[%clk 0:02:04]}  Rxe1 {[%clk 0:01:53]} 20. Rxe1 {[%clk 0:02:04]}  Bxc2 {[%clk 0:01:53]} 21. Qe3 {[%clk 0:02:02]}  Qa5 {[%clk 0:01:49]} 22. Rc1 {[%clk 0:02:02]}  Bg6 {[%clk 0:01:46]} 23. a3 {[%clk 0:01:55]}  h6 {[%clk 0:01:37]} 24. Rxc6 {[%clk 0:01:41]}  Rd8 {[%clk 0:01:37]} 25. Qc5 {[%clk 0:01:19]}  Qd2 {[%clk 0:01:23]} 26. Rc8 {[%clk 0:01:18]}  Rxc8 {[%clk 0:01:22]} 27. Qxc8+ {[%clk 0:01:19]}  Kh7 {[%clk 0:01:22]} 28. Qc3 {[%clk 0:01:19]}  Qd1 {[%clk 0:01:15]} 29. Kf2 {[%clk 0:01:14]}  Qd6 {[%clk 0:01:09]} 30. g3 {[%clk 0:01:14]}  Qb6+ {[%clk 0:01:07]} 31. Ke1 {[%clk 0:01:11]}  Qe6+ {[%clk 0:01:06]} 32. Be2 {[%clk 0:01:06]}  Qb6 {[%clk 0:01:01]} 33. Kf1 {[%clk 0:01:01]}  Qe6 {[%clk 0:00:57]} 34. b4 {[%clk 0:01:00]}  Qh3+ {[%clk 0:00:57]} 35. Kg1 {[%clk 0:00:59]}  Qe6 {[%clk 0:00:58]} 36. Bf3 {[%clk 0:00:53]}  Qb6+ {[%clk 0:00:51]} 37. Qc5 {[%clk 0:00:54]}  Qa6 {[%clk 0:00:49]} 38. b5 {[%clk 0:00:53]}  Qa5 {[%clk 0:00:49]} 39. Qb4 {[%clk 0:00:52]}  Qb6+ {[%clk 0:00:48]} 40. Kg2 {[%clk 0:00:51]}  Qc7 {[%clk 0:00:38]} 41. Qb2 {[%clk 0:00:46]}  Qb6 {[%clk 0:00:28]} 42. a4 {[%clk 0:00:46]}  Bf5 {[%clk 0:00:27]} 43. Qe5 {[%clk 0:00:32]}  Bg6 {[%clk 0:00:15]} 44. Qc3 {[%clk 0:00:30]}  Bf5 {[%clk 0:00:13]} 45. Bc6 {[%clk 0:00:27]}  g6 {[%clk 0:00:11]} 46. a5 {[%clk 0:00:27]}  Qd8 {[%clk 0:00:11]} 47. a6 {[%clk 0:00:24]}  Be6 {[%clk 0:00:12]} 48. Kf2 {[%clk 0:00:21]}  Qb6+ {[%clk 0:00:10]} 49. Qe3 {[%clk 0:00:22]}  Qa5 {[%clk 0:00:10]} 50. a7 {[%clk 0:00:15]}  Qa2+ {[%clk 0:00:09]} 51. Kf3 {[%clk 0:00:15]}  Bd5+ {[%clk 0:00:08]} 52. Bxd5 {[%clk 0:00:14]}  Qxd5+ {[%clk 0:00:09]} 53. Kf2 {[%clk 0:00:12]}  Qa2+ {[%clk 0:00:09]} 54. Kg1 {[%clk 0:00:12]}  Qa1+ {[%clk 0:00:09]} 55. Kg2 {[%clk 0:00:12]}  Qa2+ {[%clk 0:00:09]} 56. Qf2 {[%clk 0:00:13]}  Qd5+ {[%clk 0:00:09]} 57. Qf3 {[%clk 0:00:10]}  Qd2+ {[%clk 0:00:09]} 58. Qf2 {[%clk 0:00:06]}  Qd5+ {[%clk 0:00:08]} 59. Kf1 {[%clk 0:00:06]}  Qd1+ {[%clk 0:00:07]} 60. Qe1 {[%clk 0:00:06]}  Qd3+ {[%clk 0:00:07]} 61. Qe2 {[%clk 0:00:05]}  Qf5+ {[%clk 0:00:04]} 62. Kg1 {[%clk 0:00:05]}  Qb1+ {[%clk 0:00:04]} 63. Kg2 {[%clk 0:00:05]}  Qa1 {[%clk 0:00:04]} 64. b6 {[%clk 0:00:05]}  Qa5 {[%clk 0:00:03]} 65. Qf2 {[%clk 0:00:06]}  Qd5+ {[%clk 0:00:03]} 66. Kg1 {[%clk 0:00:06]}  Qd1+ {[%clk 0:00:04]} 67. Kg2 {[%clk 0:00:06]}  Qd5+ {[%clk 0:00:04]} 68. Qf3 {[%clk 0:00:07]}  Qd2+ {[%clk 0:00:04]} 69. Kh3 {[%clk 0:00:08]}  Qd7+ {[%clk 0:00:04]} 70. g4 {[%clk 0:00:08]} 1-0


[Site "https://www.chess.com"]

[Event "Titled Tuesday Blitz September 27 Late 2022"]
[White "Pinheiro, Iung Alicio de O."]
[Black "Lazavik, Denis"]
[WhiteFideId "2104350"]
[BlackFideId "13515110"]
[WhiteElo "2283"]
[BlackElo "2437"]
[Result "0-1"]
[Round "01"]
[TimeControl "180+1"]
[Date "2022.09.27"]
[WhiteClock "0:00:03"]
[BlackClock "0:00:23"]

1. e4 {[%clk 0:02:59]}  c5 {[%clk 0:03:00]} 2. Nf3 {[%clk 0:02:58]}  e6 {[%clk 0:03:00]} 3. d3 {[%clk 0:02:58]}  Nc6 {[%clk 0:02:59]} 4. g3 {[%clk 0:02:58]}  d5 {[%clk 0:02:58]} 5. Qe2 {[%clk 0:02:57]}  Nf6 {[%clk 0:02:36]} 6. Bg2 {[%clk 0:02:56]}  Be7 {[%clk 0:02:36]} 7. O-O {[%clk 0:02:56]}  O-O {[%clk 0:02:36]} 8. e5 {[%clk 0:02:54]}  Nd7 {[%clk 0:02:36]} 9. c4 {[%clk 0:02:55]}  Nb6 {[%clk 0:02:20]} 10. h4 {[%clk 0:02:45]}  Bd7 {[%clk 0:02:18]} 11. Bf4 {[%clk 0:02:40]}  Nd4 {[%clk 0:02:11]} 12. Nxd4 {[%clk 0:02:38]}  cxd4 {[%clk 0:02:12]} 13. b3 {[%clk 0:02:24]}  Bc6 {[%clk 0:02:11]} 14. Nd2 {[%clk 0:02:21]}  dxc4 {[%clk 0:02:11]} 15. bxc4 {[%clk 0:02:09]}  Bxg2 {[%clk 0:02:06]} 16. Kxg2 {[%clk 0:02:09]}  Na4 {[%clk 0:02:06]} 17. Qf3 {[%clk 0:01:59]}  Qd7 {[%clk 0:02:04]} 18. Rab1 {[%clk 0:01:54]}  b6 {[%clk 0:02:00]} 19. h5 {[%clk 0:01:42]}  h6 {[%clk 0:01:59]} 20. Ne4 {[%clk 0:01:41]}  Nc5 {[%clk 0:01:52]} 21. Rbe1 {[%clk 0:01:37]}  Kh8 {[%clk 0:01:45]} 22. Rh1 {[%clk 0:00:54]}  Nxe4 {[%clk 0:01:34]} 23. Rxe4 {[%clk 0:00:53]}  Rad8 {[%clk 0:01:27]} 24. g4 {[%clk 0:00:51]}  f5 {[%clk 0:01:18]} 25. exf6 {[%clk 0:00:48]}  Rxf6 {[%clk 0:01:16]} 26. Qe2 {[%clk 0:00:39]}  Rdf8 {[%clk 0:01:15]} 27. Bg3 {[%clk 0:00:38]}  Qc6 {[%clk 0:01:09]} 28. Re1 {[%clk 0:00:36]}  Bd6 {[%clk 0:01:06]} 29. f3 {[%clk 0:00:28]}  Bxg3 {[%clk 0:01:00]} 30. Kxg3 {[%clk 0:00:29]}  Qd6+ {[%clk 0:01:00]} 31. Kg2 {[%clk 0:00:28]}  Rxf3 {[%clk 0:00:52]} 32. Qxf3 {[%clk 0:00:28]}  Rxf3 {[%clk 0:00:52]} 33. Kxf3 {[%clk 0:00:28]}  Qh2 {[%clk 0:00:53]} 34. Rxe6 {[%clk 0:00:20]}  Qh3+ {[%clk 0:00:49]} 35. Kf4 {[%clk 0:00:20]}  Qxd3 {[%clk 0:00:49]} 36. Re8+ {[%clk 0:00:19]}  Kh7 {[%clk 0:00:49]} 37. R1e7 {[%clk 0:00:15]}  Qd2+ {[%clk 0:00:46]} 38. Ke4 {[%clk 0:00:14]}  Qe2+ {[%clk 0:00:43]} 39. Kxd4 {[%clk 0:00:14]}  Qxg4+ {[%clk 0:00:43]} 40. Kc3 {[%clk 0:00:14]}  Qxh5 {[%clk 0:00:43]} 41. Ra8 {[%clk 0:00:11]}  Qh3+ {[%clk 0:00:38]} 42. Kb4 {[%clk 0:00:10]}  Qg2 {[%clk 0:00:23]} 43. Raxa7 {[%clk 0:00:09]}  h5 {[%clk 0:00:23]} 44. Kb5 {[%clk 0:00:03]}  h4 {[%clk 0:00:23]} 0-1


[Site "https://www.chess.com"]

[Event "Titled Tuesday Blitz September 27 Late 2022"]
[White "Ponce Cano, Adrian"]
[Black "Abdrlauf, Elham"]
[WhiteFideId "22296913"]
[BlackFideId "1533533"]
[WhiteElo "2285"]
[BlackElo "2409"]
[Result "1-0"]
[Round "01"]
[TimeControl "180+1"]
[Date "2022.09.27"]
[WhiteClock "0:00:34"]
[BlackClock "0:00:54"]

1. e4 {[%clk 0:02:59]}  c6 {[%clk 0:02:58]} 2. d4 {[%clk 0:02:58]}  d5 {[%clk 0:02:58]} 3. Nc3 {[%clk 0:02:58]}  dxe4 {[%clk 0:02:59]} 4. Nxe4 {[%clk 0:02:59]}  Nf6 {[%clk 0:02:59]} 5. Nxf6+ {[%clk 0:02:59]}  exf6 {[%clk 0:03:00]} 6. Nf3 {[%clk 0:03:00]}  Bd6 {[%clk 0:03:01]} 7. Be3 {[%clk 0:02:56]}  O-O {[%clk 0:03:02]} 8. Qd2 {[%clk 0:02:56]}  Be6 {[%clk 0:03:02]} 9. Bd3 {[%clk 0:02:54]}  Re8 {[%clk 0:03:02]} 10. O-O {[%clk 0:02:45]}  Nd7 {[%clk 0:03:02]} 11. c4 {[%clk 0:02:43]}  Nf8 {[%clk 0:03:02]} 12. Rfe1 {[%clk 0:02:41]}  Ng6 {[%clk 0:03:02]} 13. h3 {[%clk 0:02:39]}  Qd7 {[%clk 0:03:02]} 14. Bf1 {[%clk 0:02:21]}  Bf5 {[%clk 0:03:02]} 15. Rad1 {[%clk 0:02:15]}  Rad8 {[%clk 0:03:02]} 16. Qc3 {[%clk 0:02:13]}  b6 {[%clk 0:02:51]} 17. a3 {[%clk 0:02:05]}  Bb8 {[%clk 0:02:50]} 18. d5 {[%clk 0:01:53]}  c5 {[%clk 0:02:50]} 19. b4 {[%clk 0:01:52]}  Rc8 {[%clk 0:02:46]} 20. bxc5 {[%clk 0:01:49]}  bxc5 {[%clk 0:02:46]} 21. Bc1 {[%clk 0:01:37]}  Ne5 {[%clk 0:02:36]} 22. Nxe5 {[%clk 0:01:30]}  Bxe5 {[%clk 0:02:37]} 23. Qf3 {[%clk 0:01:24]}  Bg6 {[%clk 0:02:15]} 24. Bd3 {[%clk 0:01:16]}  Qa4 {[%clk 0:02:05]} 25. Bxg6 {[%clk 0:01:12]}  hxg6 {[%clk 0:02:06]} 26. Qd3 {[%clk 0:01:12]}  Bd6 {[%clk 0:01:57]} 27. g3 {[%clk 0:01:03]}  f5 {[%clk 0:01:57]} 28. Kg2 {[%clk 0:01:02]}  Re4 {[%clk 0:01:56]} 29. Rxe4 {[%clk 0:00:55]}  fxe4 {[%clk 0:01:57]} 30. Qe2 {[%clk 0:00:55]}  f5 {[%clk 0:01:36]} 31. Re1 {[%clk 0:00:53]}  Rb8 {[%clk 0:01:32]} 32. g4 {[%clk 0:00:51]}  Re8 {[%clk 0:01:26]} 33. gxf5 {[%clk 0:00:50]}  gxf5 {[%clk 0:01:27]} 34. Qh5 {[%clk 0:00:50]}  Qd7 {[%clk 0:01:28]} 35. Bg5 {[%clk 0:00:48]}  f4 {[%clk 0:01:26]} 36. Qg6 {[%clk 0:00:41]}  Qf7 {[%clk 0:01:16]} 37. Qxd6 {[%clk 0:00:38]}  Qf5 {[%clk 0:01:12]} 38. Qxf4 {[%clk 0:00:37]}  Qg6 {[%clk 0:01:10]} 39. Qg4 {[%clk 0:00:36]}  e3 {[%clk 0:00:56]} 40. Rxe3 {[%clk 0:00:35]}  Rf8 {[%clk 0:00:54]} 41. Qe6+ {[%clk 0:00:34]}  Qxe6 {[%clk 0:00:54]} 42. Rxe6 {[%clk 0:00:34]} 1-0


[Site "https://www.chess.com"]

[Event "Titled Tuesday Blitz September 27 Late 2022"]
[White "Rose, Felix"]
[Black "Noboa Silva, Kevin"]
[WhiteFideId "5105722"]
[BlackFideId "3618471"]
[WhiteElo "2039"]
[BlackElo "2172"]
[Result "0-1"]
[Round "01"]
[TimeControl "180+1"]
[Date "2022.09.28"]
[WhiteClock "0:00:13"]
[BlackClock "0:00:04"]

1. e4 {[%clk 0:03:00]}  e6 {[%clk 0:02:59]} 2. d4 {[%clk 0:02:59]}  d5 {[%clk 0:03:00]} 3. Nc3 {[%clk 0:02:59]}  Nf6 {[%clk 0:03:00]} 4. e5 {[%clk 0:02:59]}  Nfd7 {[%clk 0:03:00]} 5. f4 {[%clk 0:03:00]}  c5 {[%clk 0:03:00]} 6. Nf3 {[%clk 0:03:01]}  Nc6 {[%clk 0:03:01]} 7. Be3 {[%clk 0:03:01]}  cxd4 {[%clk 0:03:01]} 8. Nxd4 {[%clk 0:03:01]}  Bc5 {[%clk 0:03:02]} 9. Qd2 {[%clk 0:03:01]}  O-O {[%clk 0:03:02]} 10. O-O-O {[%clk 0:03:01]}  Nxd4 {[%clk 0:03:02]} 11. Bxd4 {[%clk 0:03:01]}  a6 {[%clk 0:03:03]} 12. h4 {[%clk 0:03:00]}  Qc7 {[%clk 0:03:00]} 13. h5 {[%clk 0:03:00]}  h6 {[%clk 0:03:00]} 14. g4 {[%clk 0:02:59]}  b5 {[%clk 0:02:48]} 15. Bxc5 {[%clk 0:02:52]}  Nxc5 {[%clk 0:02:47]} 16. Qd4 {[%clk 0:02:51]}  Nd7 {[%clk 0:02:33]} 17. Bd3 {[%clk 0:02:47]}  Rb8 {[%clk 0:02:30]} 18. a3 {[%clk 0:02:42]}  Qb6 {[%clk 0:02:26]} 19. Ne2 {[%clk 0:02:35]}  a5 {[%clk 0:02:18]} 20. Qxb6 {[%clk 0:02:32]}  Rxb6 {[%clk 0:02:18]} 21. b4 {[%clk 0:02:30]}  axb4 {[%clk 0:02:14]} 22. axb4 {[%clk 0:02:30]}  Bb7 {[%clk 0:02:07]} 23. Nd4 {[%clk 0:02:30]}  Ra8 {[%clk 0:01:35]} 24. Kb2 {[%clk 0:02:25]}  Ra4 {[%clk 0:01:30]} 25. c3 {[%clk 0:02:25]}  Ba6 {[%clk 0:01:18]} 26. Ra1 {[%clk 0:02:23]}  Rxa1 {[%clk 0:01:17]} 27. Rxa1 {[%clk 0:02:24]}  f6 {[%clk 0:01:16]} 28. exf6 {[%clk 0:01:46]}  Nxf6 {[%clk 0:01:15]} 29. Be2 {[%clk 0:01:44]}  Ne4 {[%clk 0:01:12]} 30. Ra5 {[%clk 0:01:39]}  Nd6 {[%clk 0:01:09]} 31. Nxe6 {[%clk 0:01:33]}  Bc8 {[%clk 0:01:06]} 32. Nd4 {[%clk 0:01:20]}  Bd7 {[%clk 0:01:05]} 33. Ra7 {[%clk 0:01:08]}  Be8 {[%clk 0:00:57]} 34. Bd3 {[%clk 0:01:03]}  Rb8 {[%clk 0:00:45]} 35. Ra6 {[%clk 0:01:00]}  Ne4 {[%clk 0:00:36]} 36. Ra7 {[%clk 0:00:55]}  Nf6 {[%clk 0:00:28]} 37. Nf5 {[%clk 0:00:47]}  Bf7 {[%clk 0:00:22]} 38. Be2 {[%clk 0:00:47]}  Re8 {[%clk 0:00:20]} 39. Bxb5 {[%clk 0:00:47]}  Re4 {[%clk 0:00:13]} 40. Nd6 {[%clk 0:00:36]}  Rxf4 {[%clk 0:00:08]} 41. Rxf7 {[%clk 0:00:25]}  Rf2+ {[%clk 0:00:06]} 42. Kb3 {[%clk 0:00:24]}  Nxg4 {[%clk 0:00:06]} 43. Rxf2 {[%clk 0:00:23]}  Nxf2 {[%clk 0:00:07]} 44. Bc6 {[%clk 0:00:23]}  Kf8 {[%clk 0:00:07]} 45. Bxd5 {[%clk 0:00:23]}  Ke7 {[%clk 0:00:07]} 46. Ne4 {[%clk 0:00:20]}  Nd3 {[%clk 0:00:07]} 47. Kc2 {[%clk 0:00:19]}  Nf4 {[%clk 0:00:06]} 48. c4 {[%clk 0:00:16]}  Nxh5 {[%clk 0:00:07]} 49. b5 {[%clk 0:00:17]}  Nf4 {[%clk 0:00:06]} 50. c5 {[%clk 0:00:17]}  Nxd5 {[%clk 0:00:06]} 51. b6 {[%clk 0:00:17]}  Kd7 {[%clk 0:00:05]} 52. Nd6 {[%clk 0:00:15]}  g6 {[%clk 0:00:03]} 53. b7 {[%clk 0:00:14]}  Kc7 {[%clk 0:00:03]} 54. c6 {[%clk 0:00:12]}  Nb4+ {[%clk 0:00:03]} 55. Kb3 {[%clk 0:00:13]}  Nxc6 {[%clk 0:00:03]} 56. Ne8+ {[%clk 0:00:11]}  Kxb7 {[%clk 0:00:03]} 57. Ng7 {[%clk 0:00:11]}  h5 {[%clk 0:00:02]} 58. Ne6 {[%clk 0:00:12]}  Ne5 {[%clk 0:00:02]} 59. Kc3 {[%clk 0:00:12]}  Kc6 {[%clk 0:00:02]} 60. Kd4 {[%clk 0:00:12]}  Kd6 {[%clk 0:00:03]} 61. Nf4 {[%clk 0:00:12]}  Nc6+ {[%clk 0:00:01]} 62. Ke4 {[%clk 0:00:12]}  Ne7 {[%clk 0:00:02]} 63. Nh3 {[%clk 0:00:11]}  Ke6 {[%clk 0:00:02]} 64. Kf4 {[%clk 0:00:11]}  Kf6 {[%clk 0:00:02]} 65. Ng5 {[%clk 0:00:12]}  Nd5+ {[%clk 0:00:03]} 66. Ke4 {[%clk 0:00:12]}  Kxg5 {[%clk 0:00:03]} 67. Kxd5 {[%clk 0:00:13]}  Kg4 {[%clk 0:00:04]} 0-1


[Site "https://www.chess.com"]

[Event "Titled Tuesday Blitz September 27 Late 2022"]
[White "Runets, Ivan"]
[Black "Tari, Aryan"]
[WhiteFideId "13511564"]
[BlackFideId "1510045"]
[WhiteElo "1962"]
[BlackElo "2612"]
[Result "0-1"]
[Round "01"]
[TimeControl "180+1"]
[Date "2022.09.27"]
[WhiteClock "0:00:01"]
[BlackClock "0:00:11"]

1. d4 {[%clk 0:02:59]}  Nf6 {[%clk 0:02:55]} 2. c4 {[%clk 0:02:58]}  g6 {[%clk 0:02:48]} 3. Nc3 {[%clk 0:02:58]}  Bg7 {[%clk 0:02:46]} 4. e4 {[%clk 0:02:58]}  d6 {[%clk 0:02:47]} 5. h3 {[%clk 0:02:56]}  O-O {[%clk 0:02:46]} 6. Be3 {[%clk 0:02:55]}  Na6 {[%clk 0:02:40]} 7. g4 {[%clk 0:02:47]}  c5 {[%clk 0:02:35]} 8. d5 {[%clk 0:02:46]}  Nc7 {[%clk 0:02:36]} 9. Qd2 {[%clk 0:02:44]}  b5 {[%clk 0:02:33]} 10. cxb5 {[%clk 0:02:43]}  a6 {[%clk 0:02:34]} 11. b6 {[%clk 0:02:39]}  Nb5 {[%clk 0:02:34]} 12. Nge2 {[%clk 0:02:25]}  Qxb6 {[%clk 0:02:23]} 13. Bg2 {[%clk 0:02:25]}  Nxc3 {[%clk 0:02:18]} 14. bxc3 {[%clk 0:02:23]}  Nd7 {[%clk 0:02:07]} 15. O-O {[%clk 0:02:22]}  Rb8 {[%clk 0:02:05]} 16. f4 {[%clk 0:02:04]}  a5 {[%clk 0:02:03]} 17. Qc2 {[%clk 0:01:38]}  Qb2 {[%clk 0:02:00]} 18. Qd3 {[%clk 0:01:36]}  Qb5 {[%clk 0:01:39]} 19. Qxb5 {[%clk 0:01:27]}  Rxb5 {[%clk 0:01:40]} 20. Rab1 {[%clk 0:01:28]}  Ba6 {[%clk 0:01:39]} 21. Rxb5 {[%clk 0:01:15]}  Bxb5 {[%clk 0:01:40]} 22. Kf2 {[%clk 0:01:15]}  Bxe2 {[%clk 0:01:10]} 23. Kxe2 {[%clk 0:01:16]}  Bxc3 {[%clk 0:01:02]} 24. Rb1 {[%clk 0:01:13]}  Bb4 {[%clk 0:01:02]} 25. Bc1 {[%clk 0:01:10]}  c4 {[%clk 0:00:42]} 26. a3 {[%clk 0:01:10]}  Bc5 {[%clk 0:00:42]} 27. Rb7 {[%clk 0:01:11]}  Rd8 {[%clk 0:00:35]} 28. Kd2 {[%clk 0:01:11]}  Kf8 {[%clk 0:00:34]} 29. Rb5 {[%clk 0:00:50]}  Bd4 {[%clk 0:00:29]} 30. Bf1 {[%clk 0:00:46]}  Nc5 {[%clk 0:00:29]} 31. Bxc4 {[%clk 0:00:42]}  Rc8 {[%clk 0:00:29]} 32. Rxa5 {[%clk 0:00:36]}  Nxe4+ {[%clk 0:00:29]} 33. Kd3 {[%clk 0:00:37]}  Bb6 {[%clk 0:00:29]} 34. Rb5 {[%clk 0:00:34]}  Nf2+ {[%clk 0:00:28]} 35. Ke2 {[%clk 0:00:30]}  Rxc4 {[%clk 0:00:24]} 36. Rxb6 {[%clk 0:00:29]}  Rxc1 {[%clk 0:00:20]} 37. Kxf2 {[%clk 0:00:29]}  Rc3 {[%clk 0:00:20]} 38. a4 {[%clk 0:00:28]}  Rxh3 {[%clk 0:00:20]} 39. a5 {[%clk 0:00:28]}  Ra3 {[%clk 0:00:21]} 40. Rb8+ {[%clk 0:00:26]}  Kg7 {[%clk 0:00:21]} 41. Ra8 {[%clk 0:00:26]}  h5 {[%clk 0:00:17]} 42. g5 {[%clk 0:00:23]}  Rd3 {[%clk 0:00:14]} 43. a6 {[%clk 0:00:17]}  Rxd5 {[%clk 0:00:15]} 44. Ke3 {[%clk 0:00:17]}  Ra5 {[%clk 0:00:14]} 45. Kd4 {[%clk 0:00:16]}  h4 {[%clk 0:00:15]} 46. Ke3 {[%clk 0:00:11]}  Ra2 {[%clk 0:00:15]} 47. Re8 {[%clk 0:00:05]}  Rxa6 {[%clk 0:00:13]} 48. Kf3 {[%clk 0:00:05]}  e6 {[%clk 0:00:11]} 49. Kg4 {[%clk 0:00:04]}  Ra4 {[%clk 0:00:11]} 50. Rc8 {[%clk 0:00:02]}  h3 {[%clk 0:00:10]} 51. Rc3 {[%clk 0:00:02]}  e5 {[%clk 0:00:10]} 52. Rd3 {[%clk 0:00:01]}  Rxf4+ {[%clk 0:00:11]} 53. Kxh3 {[%clk 0:00:01]}  Rd4 {[%clk 0:00:11]} 54. Rxd4 {[%clk 0:00:01]}  exd4 {[%clk 0:00:11]} 0-1


[Site "https://www.chess.com"]

[Event "Titled Tuesday Blitz September 27 Late 2022"]
[White "Salinas Herrera, Pablo"]
[Black "Reprintsev, Alexander"]
[WhiteFideId "3407128"]
[BlackFideId "14100541"]
[WhiteElo "2550"]
[BlackElo "2108"]
[Result "0-1"]
[Round "01"]
[TimeControl "180+1"]
[Date "2022.09.28"]
[WhiteClock "0:00:03"]
[BlackClock "0:00:06"]

1. e4 {[%clk 0:03:00]}  d5 {[%clk 0:02:44]} 2. exd5 {[%clk 0:02:59]}  Qxd5 {[%clk 0:02:41]} 3. Nc3 {[%clk 0:02:58]}  Qa5 {[%clk 0:02:41]} 4. g3 {[%clk 0:02:56]}  Nf6 {[%clk 0:02:38]} 5. Bg2 {[%clk 0:02:56]}  Nc6 {[%clk 0:02:38]} 6. Nge2 {[%clk 0:02:56]}  Bg4 {[%clk 0:02:37]} 7. h3 {[%clk 0:02:56]}  Bh5 {[%clk 0:02:37]} 8. d3 {[%clk 0:02:52]}  e6 {[%clk 0:02:36]} 9. Bd2 {[%clk 0:02:51]}  O-O-O {[%clk 0:02:35]} 10. a3 {[%clk 0:02:47]}  Qc5 {[%clk 0:02:34]} 11. b4 {[%clk 0:02:45]}  Qe7 {[%clk 0:02:33]} 12. Qc1 {[%clk 0:02:42]}  Qd7 {[%clk 0:02:07]} 13. Nf4 {[%clk 0:02:39]}  Bg6 {[%clk 0:02:07]} 14. O-O {[%clk 0:02:36]}  e5 {[%clk 0:02:03]} 15. Nxg6 {[%clk 0:02:33]}  hxg6 {[%clk 0:02:04]} 16. h4 {[%clk 0:02:18]}  Nd4 {[%clk 0:01:45]} 17. Be3 {[%clk 0:02:09]}  Ng4 {[%clk 0:01:38]} 18. Bxd4 {[%clk 0:02:04]}  exd4 {[%clk 0:01:38]} 19. Ne4 {[%clk 0:02:04]}  f5 {[%clk 0:01:38]} 20. Ng5 {[%clk 0:01:57]}  Re8 {[%clk 0:01:25]} 21. Qd2 {[%clk 0:01:47]}  Be7 {[%clk 0:01:24]} 22. Rfe1 {[%clk 0:01:45]}  Bf6 {[%clk 0:01:20]} 23. Nf3 {[%clk 0:01:41]}  a6 {[%clk 0:01:05]} 24. a4 {[%clk 0:01:20]}  Rxe1+ {[%clk 0:01:04]} 25. Nxe1 {[%clk 0:01:21]}  Qd6 {[%clk 0:00:50]} 26. b5 {[%clk 0:01:17]}  Re8 {[%clk 0:00:23]} 27. Nf3 {[%clk 0:01:00]}  Qc5 {[%clk 0:00:19]} 28. Rb1 {[%clk 0:00:59]}  Re6 {[%clk 0:00:16]} 29. bxa6 {[%clk 0:00:50]}  bxa6 {[%clk 0:00:16]} 30. Rb4 {[%clk 0:00:46]}  Rb6 {[%clk 0:00:15]} 31. Rc4 {[%clk 0:00:45]}  Rb1+ {[%clk 0:00:14]} 32. Bf1 {[%clk 0:00:30]}  Qd5 {[%clk 0:00:15]} 33. Ne1 {[%clk 0:00:23]}  Be7 {[%clk 0:00:10]} 34. Bg2 {[%clk 0:00:19]}  Qe6 {[%clk 0:00:09]} 35. Kf1 {[%clk 0:00:07]}  Rxe1+ {[%clk 0:00:09]} 36. Qxe1 {[%clk 0:00:07]}  Nh2+ {[%clk 0:00:10]} 37. Kg1 {[%clk 0:00:08]}  Qxe1+ {[%clk 0:00:10]} 38. Kxh2 {[%clk 0:00:09]}  Bd6 {[%clk 0:00:11]} 39. f4 {[%clk 0:00:06]}  c5 {[%clk 0:00:08]} 40. a5 {[%clk 0:00:05]}  Qxa5 {[%clk 0:00:07]} 41. Bf3 {[%clk 0:00:06]}  Kc7 {[%clk 0:00:07]} 42. Kg2 {[%clk 0:00:06]}  Qa3 {[%clk 0:00:07]} 43. Kh2 {[%clk 0:00:06]}  a5 {[%clk 0:00:08]} 44. Kh3 {[%clk 0:00:07]}  Qa1 {[%clk 0:00:08]} 45. Bd5 {[%clk 0:00:07]}  a4 {[%clk 0:00:08]} 46. c3 {[%clk 0:00:06]}  dxc3 {[%clk 0:00:08]} 47. d4 {[%clk 0:00:07]}  Qb2 {[%clk 0:00:06]} 48. dxc5 {[%clk 0:00:06]}  Bxf4 {[%clk 0:00:06]} 49. Rxa4 {[%clk 0:00:05]}  c2 {[%clk 0:00:06]} 50. Ra7+ {[%clk 0:00:06]}  Kc8 {[%clk 0:00:06]} 51. Ra8+ {[%clk 0:00:06]}  Qb8 {[%clk 0:00:06]} 52. Be6+ {[%clk 0:00:03]}  Kc7 {[%clk 0:00:06]} 0-1


[Site "https://www.chess.com"]